[Event "13th Leiden Crown Group 2019"]
[Site "Leiden"]
[Date "2019.07.17"]
[Round "5.4"]
[White "Stefansson, Hannes"]
[Black "Lalith Babu M R"]
[Result "1/2-1/2"]
[ECO "C92"]
[WhiteElo "2562"]
[BlackElo "2580"]
[Annotator "ChessBase"]
[PlyCount "102"]
[EventDate "2019.07.08"]
[EventType "tourn"]
[EventCountry "NED"]
[SourceTitle "playchess.com"]
[Source "ChessBase"]
[SourceQuality "1"]
[TimeControl "40/5400+30:1800+30"]

1. e4 {[%emt 0:00:00]} e5 {[%emt 0:00:00]} 2. Nf3 {[%emt 0:00:00]} Nc6 {[%emt 0:00:00]} 3. Bb5 {[%emt 0:00:08]} a6 {[%emt 0:00:00]} 4. Ba4 {[%emt 0:00:11]} Nf6 {[%emt 0:00:00]} 5. O-O {[%emt 0:00:24]} Be7 {[%emt 0:00:20]} 6. Re1 {[%emt 0:00:18]} b5 {[%emt 0:00:07]} 7. Bb3 {[%emt 0:00:21]} d6 {[%emt 0:00:06]} 8. c3 {[%emt 0:00:24]} O-O {[%emt 0:00:12]} 9. h3 {[%emt 0:00:34]} Bb7 {[%emt 0:08:40]} 10. d4 {[%emt 0:02:12]} Nd7 {[%emt 0:01:40]} 11. Nbd2 {[%emt 0:09:11]} Bf6 {[%emt 0:00:11]} 12. Nf1 {[%emt 0:02:24]} Na5 {[%emt 0:16:54]} 13. Bc2 {[%emt 0:00:22]} c5 {[%emt 0:00:04]} 14. dxc5 {[%emt 0:08:04]} dxc5 {[%emt 0:00:44]} 15. Ne3 {[%emt 0:06:08]} g6 {[%emt 0:04:01]} 16. Qe2 {[%emt 0:05:50]} Bg7 {[%emt 0:01:17]} 17. Rd1 {[%emt 0:00:48]} Qc7 {[%emt 0:03:01]} 18. a4 {[%emt 0:16:15]} b4 {[%emt 0:03:55]} 19. cxb4 {[%emt 0:03:12]} cxb4 {[%emt 0:01:07]} 20. Bd2 {[%emt 0:03:38]} Nc6 {[%emt 0:01:21]} 21. Nd5 {[%emt 0:00:59]} Qb8 {[%emt 0:00:17]} 22. Nxb4 {[%emt 0:04:42]} Nd4 {[%emt 0:00:22]} 23. Nxd4 {[%emt 0:00:08]} exd4 {[%emt 0:00:03]} 24. Nd3 {[%emt 0:09:41]} Re8 {[%emt 0:03:30]} 25. f3 {[%emt 0:00:36]} a5 {[%emt 0:03:10]} 26. Bf4 {[%emt 0:01:04]} Qd8 {[%emt 0:00:19]} 27. Qd2 {[%emt 0:01:27]} Ba6 {[%emt 0:01:30]} 28. Rab1 {[%emt 0:02:35]} Rc8 {[%emt 0:07:57]} 29. b4 {[%emt 0:02:31]} axb4 {[%emt 0:00:13]} 30. Nxb4 {[%emt 0:00:37]} Bc4 {[%emt 0:00:10]} 31. Nd3 {[%emt 0:02:07]} Ba6 {[%emt 0:01:58]} 32. Nb4 {[%emt 0:05:38]} Bc4 {[%emt 0:00:40]} 33. Bg3 {[%emt 0:00:18]} Nc5 {[%emt 0:01:58]} 34. Bf2 {[%emt 0:00:41]} Ne6 {[%emt 0:00:26]} 35. Nd3 {[%emt 0:00:30]} Qd6 {[%emt 0:09:53]} 36. a5 {[%emt 0:00:47]} Ra8 {[%emt 0:02:15]} 37. Nb2 {[%emt 0:04:34]} Ba6 {[%emt 0:07:11]} 38. Nd3 {[%emt 0:00:07]} Bc4 {[%emt 0:00:25]} 39. Ra1 {[%emt 0:00:23]} Rec8 {[%emt 0:01:12]} 40. Qe1 {[%emt 0:03:52]} Bxd3 {[%emt 0:03:10]} 41. Bxd3 {[%emt 0:30:05]} Nf4 {[%emt 0:30:07]} 42. Qf1 {[%emt 0:03:21]} Be5 {[%emt 0:01:33]} 43. a6 {[%emt 0:00:00]} Nxd3 {[%emt 0:00:00]} 44. Qxd3 {[%emt 0:00:00]} Rc6 {[%emt 0:00:00]} 45. a7 {[%emt 0:00:00]} Rc7 {[%emt 0:00:00]} 46. f4 {[%emt 0:00:00]} Bxf4 {[%emt 0:00:00]} 47. Bxd4 {[%emt 0:00:00]} Qe7 {[%emt 0:00:00]} 48. Qa6 {[%emt 0:00:00]} Qxe4 {[%emt 0:00:00]} 49. Qf6 {[%emt 0:00:00]} Be3+ {[%emt 0:00:00]} 50. Kh1 {[%emt 0:00:00]} Bxd4 {[%emt 0:00:00]} 51. Rxd4 {[%emt 0:00:00]} Qe7 {[%emt 0:00:00]} 1/2-1/2

[Event "13th Leiden Crown Group 2019"]
[Site "Leiden"]
[Date "2019.07.17"]
[Round "5.5"]
[White "Das, Arghyadip"]
[Black "Van der Wiel, John T.H."]
[Result "1-0"]
[ECO "B31"]
[WhiteElo "2439"]
[BlackElo "2380"]
[Annotator "NA"]
[PlyCount "81"]
[EventDate "2019.07.08"]
[EventType "tourn"]
[EventCountry "NED"]
[SourceTitle "playchess.com"]
[Source "ChessBase"]
[SourceQuality "1"]
[TimeControl "40/5400+30:1800+30"]

1. e4 {[%emt 0:00:00]} c5 {[%emt 0:00:00]} 2. Nf3 {[%emt 0:00:00]} Nc6 {[%emt 0:00:06]} 3. Bb5 {[%emt 0:00:28]} g6 {[%emt 0:00:20]} 4. Bxc6 {[%emt 0:00:23]} bxc6 {[%emt 0:01:21]} 5. d4 {[%emt 0:00:20]} cxd4 {[%emt 0:01:11]} 6. Qxd4 {[%emt 0:00:04]} f6 {[%emt 0:03:02]} 7. O-O {[%emt 0:04:21]} Bg7 {[%emt 0:10:24]} 8. c4 {[%emt 0:00:59]} Nh6 {[%emt 0:00:36]} 9. Bxh6 {[%emt 0:00:31]} Bxh6 {[%emt 0:00:15]} 10. c5 {[%emt 0:00:04]} O-O {[%emt 0:06:15]} 11. Rd1 {[%emt 0:00:12]} Qc7 {[%emt 0:14:53]} 12. Na3 {[%emt 0:08:45]} Kh8 {[%emt 0:01:55]} 13. Rd3 {[%emt 0:23:19]} Rb8 {[%emt 0:08:30]} 14. Nc4 {[%emt 0:08:11]} Ba6 {[%emt 0:02:14]} 15. b3 {[%emt 0:00:30]} Rbd8 {[%emt 0:04:12]} 16. Rad1 {[%emt 0:07:18]} Bg7 {[%emt 0:04:04]} 17. Qc3 {[%emt 0:06:54]} Qf4 {[%emt 0:29:22]} 18. Nfd2 {[%emt 0:27:04]} Qg4 {[%emt 0:01:10]} 19. Re1 {[%emt 0:01:41]} Qe6 {[%emt 0:01:14]} 20. Qa5 {[%emt 0:00:55]} Bc8 {[%emt 0:02:00]} 21. Nf3 {[%emt 0:00:27]} d6 {[%emt 0:04:04]} 22. cxd6 {[%emt 0:02:00]} exd6 {[%emt 0:00:23]} 23. Qxa7 {[%emt 0:00:35]} d5 {[%emt 0:00:55]} 24. exd5 {[%emt 0:00:19]} Qf5 {[%emt 0:00:13]} 25. Red1 {[%emt 0:03:39]} Rxd5 {[%emt 0:01:03]} 26. Rxd5 {[%emt 0:00:04]} cxd5 {[%emt 0:00:06]} 27. Ne3 {[%emt 0:00:06]} Qe4 {[%emt 0:00:30]} 28. Rxd5 {[%emt 0:01:02]} f5 {[%emt 0:01:00]} 29. Rd1 {[%emt 0:00:54]} f4 {[%emt 0:00:22]} 30. Nf1 {[%emt 0:00:34]} Bg4 {[%emt 0:00:44]} 31. Re1 {[%emt 0:01:25]} Qf5 {[%emt 0:01:27]} 32. Qb7 {[%emt 0:00:54]} Qa5 {[%emt 0:01:07]} 33. Re7 {[%emt 0:00:54]} Bxf3 {[%emt 0:00:19]} 34. Qxf3 {[%emt 0:00:58]} Qxa2 {[%emt 0:00:15]} 35. h3 {[%emt 0:00:37]} Rb8 {[%emt 0:01:02]} 36. Rb7 {[%emt 0:00:32]} Rf8 {[%emt 0:00:21]} 37. Qd3 {[%emt 0:00:38]} Qb2 {[%emt 0:00:27]} 38. Nd2 {[%emt 0:00:32]} Qc1+ {[%emt 0:01:00]} 39. Kh2 {[%emt 0:00:25]} f3 {[%emt 0:00:35]} 40. gxf3 {[%emt 0:00:48]} Bc3 {[%emt 0:00:32]} 41. Qd7 {[%emt 0:01:17]} 1-0

[Event "13th Leiden Crown Group 2019"]
[Site "Leiden"]
[Date "2019.07.19"]
[Round "7.1"]
[White "Schekachikhin, Maksim"]
[Black "Kuipers, Stefan"]
[Result "1/2-1/2"]
[ECO "A77"]
[WhiteElo "2415"]
[BlackElo "2435"]
[Annotator "ChessBase"]
[PlyCount "78"]
[EventDate "2019.07.08"]
[EventType "tourn"]
[EventCountry "NED"]
[SourceTitle "playchess.com"]
[Source "ChessBase"]
[SourceQuality "1"]
[TimeControl "40/5400+30:1800+30"]

1. d4 {[%emt 0:00:00]} Nf6 {[%emt 0:00:00]} 2. c4 {[%emt 0:00:32]} c5 {[%emt 0:00:00]} 3. d5 {[%emt 0:00:09]} e6 {[%emt 0:00:00]} 4. Nc3 {[%emt 0:00:40]} exd5 {[%emt 0:00:00]} 5. cxd5 {[%emt 0:00:07]} d6 {[%emt 0:00:03]} 6. Nf3 {[%emt 0:01:07]} g6 {[%emt 0:00:07]} 7. Nd2 {[%emt 0:00:10]} Bg7 {[%emt 0:00:13]} 8. e4 {[%emt 0:00:07]} O-O {[%emt 0:00:18]} 9. Be2 {[%emt 0:00:06]} Re8 {[%emt 0:00:42]} 10. O-O {[%emt 0:00:18]} Nbd7 {[%emt 0:00:10]} 11. a4 {[%emt 0:01:02]} Ne5 {[%emt 0:00:17]} 12. Ra3 {[%emt 0:00:45]} a6 {[%emt 0:01:09]} 13. Qc2 {[%emt 0:11:05]} Bg4 {[%emt 0:04:11]} 14. Bxg4 {[%emt 0:21:46]} Nfxg4 {[%emt 0:00:58]} 15. h3 {[%emt 0:04:38]} Nh6 {[%emt 0:02:22]} 16. a5 {[%emt 0:07:00]} f5 {[%emt 0:06:11]} 17. Ne2 {[%emt 0:07:28]} Qh4 {[%emt 0:11:52]} 18. exf5 {[%emt 0:10:42]} Nxf5 {[%emt 0:00:43]} 19. Ra4 {[%emt 0:00:25]} Nd4 {[%emt 0:12:23]} 20. Nxd4 {[%emt 0:02:52]} cxd4 {[%emt 0:00:11]} 21. Qb3 {[%emt 0:07:00]} Rf8 {[%emt 0:07:23]} 22. Nc4 {[%emt 0:08:09]} Rac8 {[%emt 0:14:43]} 23. Bd2 {[%emt 0:02:53]} Nf3+ {[%emt 0:18:31]} 24. gxf3 {[%emt 0:00:57]} Qxh3 {[%emt 0:00:06]} 25. Ra3 {[%emt 0:08:24]} Rf5 {[%emt 0:01:43]} 26. f4 {[%emt 0:00:43]} d3 {[%emt 0:00:19]} 27. Qxd3 {[%emt 0:00:42]} Qxd3 {[%emt 0:00:07]} 28. Rxd3 {[%emt 0:00:05]} Rxc4 {[%emt 0:00:06]} 29. Rc1 {[%emt 0:01:45]} Rxc1+ {[%emt 0:07:07]} 30. Bxc1 {[%emt 0:00:03]} Rf7 {[%emt 0:00:28]} 31. b3 {[%emt 0:00:56]} Kf8 {[%emt 0:01:40]} 32. Ba3 {[%emt 0:00:17]} Ke7 {[%emt 0:00:41]} 33. Re3+ {[%emt 0:02:16]} Kd7 {[%emt 0:00:06]} 34. Re4 {[%emt 0:00:38]} Bc3 {[%emt 0:01:35]} 35. Bb4 {[%emt 0:00:39]} Bb2 {[%emt 0:00:31]} 36. Re6 {[%emt 0:00:50]} Rf6 {[%emt 0:00:07]} 37. Rxf6 {[%emt 0:00:33]} Bxf6 {[%emt 0:00:07]} 38. Kg2 {[%emt 0:00:05]} Bd4 {[%emt 0:03:48]} 39. Kg3 {[%emt 0:01:01]} Ke7 {[%emt 0:06:10]} 1/2-1/2

[Event "13th Leiden Crown Group 2019"]
[Site "Leiden"]
[Date "2019.07.19"]
[Round "7.3"]
[White "Stefansson, Hannes"]
[Black "Nikolic, Predrag"]
[Result "1/2-1/2"]
[ECO "C01"]
[WhiteElo "2562"]
[BlackElo "2574"]
[Annotator "ChessBase"]
[PlyCount "30"]
[EventDate "2019.07.08"]
[EventType "tourn"]
[EventCountry "NED"]
[SourceTitle "playchess.com"]
[Source "ChessBase"]
[SourceQuality "1"]
[TimeControl "40/5400+30:1800+30"]

1. e4 {[%emt 0:00:00]} e6 {[%emt 0:00:00]} 2. d4 {[%emt 0:00:00]} d5 {[%emt 0:00:00]} 3. exd5 {[%emt 0:00:12]} exd5 {[%emt 0:00:04]} 4. Nf3 {[%emt 0:00:14]} Nf6 {[%emt 0:01:42]} 5. Bd3 {[%emt 0:00:34]} Bg4 {[%emt 0:02:30]} 6. O-O {[%emt 0:00:59]} Be7 {[%emt 0:00:07]} 7. Bg5 {[%emt 0:03:28]} O-O {[%emt 0:02:48]} 8. Nbd2 {[%emt 0:02:38]} Nbd7 {[%emt 0:07:13]} 9. c3 {[%emt 0:01:44]} c5 {[%emt 0:01:58]} 10. dxc5 {[%emt 0:12:40]} Nxc5 {[%emt 0:00:55]} 11. Be2 {[%emt 0:02:30]} Ncd7 {[%emt 0:07:38]} 12. Bd3 {[%emt 0:00:02]} Nc5 13. Be2 {[%emt 0:00:01]} Qb6 {[%emt 0:00:00]} 14. Nb3 {[%emt 0:01:37]} Nce4 {[%emt 0:00:00]} 15. Be3 {[%emt 0:00:48]} Qc7 {[%emt 0:00:27]} 1/2-1/2

[Event "13th Leiden Crown Group 2019"]
[Site "Leiden"]
[Date "2019.07.20"]
[Round "8.2"]
[White "Pijpers, Arthur"]
[Black "Van der Wiel, John T.H."]
[Result "0-1"]
[ECO "B80"]
[WhiteElo "2474"]
[BlackElo "2380"]
[Annotator "ChessBase"]
[PlyCount "130"]
[EventDate "2019.07.08"]
[EventType "tourn"]
[EventCountry "NED"]
[SourceTitle "playchess.com"]
[Source "ChessBase"]
[SourceQuality "1"]
[TimeControl "40/5400+30:1800+30"]

1. e4 {[%emt 0:00:00]} c5 {[%emt 0:00:00]} 2. Nc3 {[%emt 0:00:00]} d6 {[%emt 0:00:00]} 3. Nge2 {[%emt 0:00:00]} Nc6 {[%emt 0:00:12]} 4. d4 {[%emt 0:00:06]} cxd4 {[%emt 0:00:11]} 5. Nxd4 {[%emt 0:00:04]} Nf6 {[%emt 0:00:14]} 6. f3 {[%emt 0:02:44]} e6 {[%emt 0:13:01]} 7. Be3 {[%emt 0:01:15]} a6 {[%emt 0:01:22]} 8. Qd2 {[%emt 0:00:15]} Be7 {[%emt 0:07:59]} 9. O-O-O {[%emt 0:00:18]} Nxd4 {[%emt 0:12:50]} 10. Bxd4 {[%emt 0:00:22]} e5 {[%emt 0:00:47]} 11. Be3 {[%emt 0:00:35]} Be6 {[%emt 0:00:16]} 12. g4 {[%emt 0:15:27]} Qa5 {[%emt 0:05:33]} 13. Qf2 {[%emt 0:03:17]} Nd7 {[%emt 0:06:58]} 14. Kb1 {[%emt 0:01:18]} Rc8 {[%emt 0:00:28]} 15. Nd5 {[%emt 0:01:55]} Bd8 {[%emt 0:02:38]} 16. h4 {[%emt 0:17:55]} Nf6 {[%emt 0:02:59]} 17. Nxf6+ {[%emt 0:08:34]} gxf6 {[%emt 0:01:14]} 18. a3 {[%emt 0:03:27]} Rc6 {[%emt 0:02:45]} 19. Rh2 {[%emt 0:10:46]} Bb6 {[%emt 0:05:50]} 20. Bxb6 {[%emt 0:01:59]} Qxb6 {[%emt 0:02:19]} 21. Qd2 {[%emt 0:02:13]} Ke7 {[%emt 0:03:10]} 22. g5 {[%emt 0:04:00]} Rhc8 {[%emt 0:16:07]} 23. gxf6+ {[%emt 0:02:59]} Kd7 {[%emt 0:00:13]} 24. Bd3 {[%emt 0:06:52]} Rc3 {[%emt 0:06:55]} 25. Qf2 {[%emt 0:04:05]} R8c5 {[%emt 0:02:46]} 26. f4 {[%emt 0:04:54]} Rxa3 {[%emt 0:00:57]} 27. f5 {[%emt 0:00:02]} Ba2+ {[%emt 0:00:24]} 28. Kc1 {[%emt 0:00:01]} Rb3 {[%emt 0:02:11]} 29. c3 {[%emt 0:02:55]} Kc7 {[%emt 0:02:08]} 30. Qf1 {[%emt 0:03:21]} a5 {[%emt 0:00:55]} 31. Rc2 {[%emt 0:00:39]} a4 {[%emt 0:00:13]} 32. Bc4 {[%emt 0:00:04]} a3 {[%emt 0:01:34]} 33. Bxb3 {[%emt 0:01:22]} Qxb3 {[%emt 0:00:20]} 34. Qd3 {[%emt 0:01:07]} Rc6 {[%emt 0:00:57]} 35. bxa3 {[%emt 0:01:28]} Bb1 {[%emt 0:00:32]} 36. Rdd2 {[%emt 0:01:08]} Bxc2 {[%emt 0:00:21]} 37. Rxc2 {[%emt 0:00:02]} Qxa3+ {[%emt 0:00:19]} 38. Kd2 {[%emt 0:00:01]} Qa7 {[%emt 0:00:31]} 39. Qe3 {[%emt 0:00:54]} Qa1 {[%emt 0:00:24]} 40. Rc1 {[%emt 0:01:00]} Qa2+ {[%emt 0:00:53]} 41. Rc2 {[%emt 0:30:11]} Qb1 {[%emt 0:01:43]} 42. Rc1 {[%emt 0:00:00]} Qb2+ {[%emt 0:01:49]} 43. Rc2 {[%emt 0:00:00]} Qb1 {[%emt 0:01:27]} 44. Qg3 {[%emt 0:00:00]} Ra6 {[%emt 0:01:41]} 45. Qe1 {[%emt 0:00:00]} Qxe1+ {[%emt 0:02:02]} 46. Kxe1 {[%emt 0:00:00]} Ra4 {[%emt 0:00:13]} 47. Re2 {[%emt 0:00:00]} Kc6 {[%emt 0:01:37]} 48. Kf2 {[%emt 0:00:00]} d5 {[%emt 0:06:30]} 49. exd5+ {[%emt 0:00:00]} Kxd5 {[%emt 0:00:09]} 50. Rd2+ {[%emt 0:00:00]} Kc6 {[%emt 0:00:13]} 51. Rd8 {[%emt 0:00:00]} Rf4+ {[%emt 0:03:07]} 52. Ke3 {[%emt 0:00:00]} Rxf5 {[%emt 0:00:10]} 53. Rh8 {[%emt 0:00:00]} Rxf6 {[%emt 0:01:59]} 54. Rxh7 {[%emt 0:00:04]} Kd5 {[%emt 0:02:18]} 55. Rh8 {[%emt 0:00:49]} Rc6 {[%emt 0:01:20]} 56. Rd8+ {[%emt 0:00:06]} Ke6 {[%emt 0:00:22]} 57. Re8+ {[%emt 0:00:19]} Kf5 {[%emt 0:02:41]} 58. Kd3 {[%emt 0:00:15]} b6 {[%emt 0:01:16]} 59. h5 {[%emt 0:03:04]} Kf4 {[%emt 0:01:28]} 60. c4 {[%emt 0:04:44]} Rh6 {[%emt 0:01:59]} 61. Rb8 {[%emt 0:00:36]} f5 {[%emt 0:00:12]} 62. Ke2 {[%emt 0:00:07]} e4 {[%emt 0:00:30]} 63. Kf2 {[%emt 0:00:41]} Rxh5 {[%emt 0:02:00]} 64. Rxb6 {[%emt 0:00:04]} Rh2+ {[%emt 0:00:11]} 65. Ke1 {[%emt 0:00:41]} Kf3 {[%emt 0:00:21]} 0-1

[Event "13th Leiden Crown Group 2019"]
[Site "Leiden"]
[Date "2019.07.20"]
[Round "8.3"]
[White "Nikolic, Predrag"]
[Black "Das, Arghyadip"]
[Result "1-0"]
[ECO "E04"]
[WhiteElo "2574"]
[BlackElo "2439"]
[Annotator "ChessBase"]
[PlyCount "111"]
[EventDate "2019.07.08"]
[EventType "tourn"]
[EventCountry "NED"]
[SourceTitle "playchess.com"]
[Source "ChessBase"]
[SourceQuality "1"]
[TimeControl "40/5400+30:1800+30"]

1. Nf3 {[%emt 0:00:00]} e6 {[%emt 0:00:25]} 2. g3 {[%emt 0:00:29]} d5 {[%emt 0:00:26]} 3. Bg2 {[%emt 0:00:07]} Nf6 {[%emt 0:00:06]} 4. O-O {[%emt 0:00:13]} c5 {[%emt 0:00:14]} 5. d4 {[%emt 0:00:40]} Nc6 {[%emt 0:00:13]} 6. c4 {[%emt 0:00:23]} dxc4 {[%emt 0:00:11]} 7. Qa4 {[%emt 0:00:19]} Bd7 {[%emt 0:00:13]} 8. Qxc4 {[%emt 0:00:09]} b5 {[%emt 0:00:08]} 9. Qd3 {[%emt 0:00:28]} c4 {[%emt 0:00:13]} 10. Qd1 {[%emt 0:00:58]} Rc8 {[%emt 0:00:06]} 11. Bg5 {[%emt 0:01:21]} Be7 {[%emt 0:04:09]} 12. Nc3 {[%emt 0:00:38]} b4 {[%emt 0:13:27]} 13. Bxf6 {[%emt 0:09:46]} Bxf6 {[%emt 0:01:01]} 14. Ne4 {[%emt 0:00:28]} Be7 {[%emt 0:01:15]} 15. Rc1 {[%emt 0:07:22]} Na5 {[%emt 0:03:23]} 16. d5 {[%emt 0:03:09]} exd5 {[%emt 0:03:29]} 17. Qxd5 {[%emt 0:00:08]} O-O {[%emt 0:03:35]} 18. Rfd1 {[%emt 0:13:04]} Ba4 {[%emt 0:07:18]} 19. Rd2 {[%emt 0:00:10]} Qb6 {[%emt 0:04:20]} 20. Qf5 {[%emt 0:02:30]} g6 {[%emt 0:08:27]} 21. Qf4 {[%emt 0:01:14]} Rcd8 {[%emt 0:15:48]} 22. Ne5 {[%emt 0:07:22]} Bb5 {[%emt 0:04:11]} 23. Rxd8 {[%emt 0:06:20]} Qxd8 {[%emt 0:00:56]} 24. Ng4 {[%emt 0:00:21]} f6 {[%emt 0:01:13]} 25. Ne3 {[%emt 0:03:35]} Nc6 {[%emt 0:12:09]} 26. Nd5 {[%emt 0:06:17]} Kh8 {[%emt 0:02:57]} 27. Rd1 {[%emt 0:13:46]} f5 {[%emt 0:08:12]} 28. Ndc3 {[%emt 0:01:26]} Qb6 {[%emt 0:02:03]} 29. Nxb5 {[%emt 0:00:21]} fxe4 {[%emt 0:00:36]} 30. Qxe4 {[%emt 0:00:07]} Rxf2 {[%emt 0:00:09]} 31. Nd4 {[%emt 0:00:57]} Rf6 {[%emt 0:00:55]} 32. e3 {[%emt 0:03:06]} Rd6 {[%emt 0:02:42]} 33. Rf1 {[%emt 0:06:06]} Rxd4 {[%emt 0:00:04]} 34. exd4 {[%emt 0:00:08]} Qxd4+ {[%emt 0:00:04]} 35. Kh1 {[%emt 0:01:00]} Qxe4 {[%emt 0:00:44]} 36. Bxe4 {[%emt 0:00:03]} Ne5 {[%emt 0:00:24]} 37. Rc1 {[%emt 0:04:37]} Bc5 {[%emt 0:01:23]} 38. Bd5 {[%emt 0:04:12]} Bd4 {[%emt 0:00:52]} 39. Bxc4 {[%emt 0:00:12]} Bxb2 {[%emt 0:00:02]} 40. Rc2 {[%emt 0:00:07]} Bc3 {[%emt 0:00:19]} 41. Ba6 {[%emt 0:30:23]} Kg7 {[%emt 0:31:05]} 42. a3 {[%emt 0:03:08]} h5 {[%emt 0:00:00]} 43. axb4 {[%emt 0:00:00]} Bxb4 {[%emt 0:00:00]} 44. Rc7+ {[%emt 0:00:00]} Kh6 {[%emt 0:00:00]} 45. Kg2 {[%emt 0:00:00]} Kg5 {[%emt 0:00:00]} 46. h4+ {[%emt 0:00:00]} Kh6 {[%emt 0:00:00]} 47. Rxa7 {[%emt 0:00:00]} g5 {[%emt 0:00:00]} 48. Rb7 {[%emt 0:00:00]} Bd2 {[%emt 0:00:00]} 49. Rb2 {[%emt 0:00:00]} Be3 {[%emt 0:00:00]} 50. Re2 {[%emt 0:00:00]} Bd4 {[%emt 0:00:00]} 51. Re4 {[%emt 0:00:00]} Bc3 {[%emt 0:00:00]} 52. Be2 {[%emt 0:00:00]} Kg6 {[%emt 0:00:00]} 53. Ra4 {[%emt 0:00:00]} Nd7 {[%emt 0:00:00]} 54. Bd3+ {[%emt 0:00:00]} Kh6 {[%emt 0:00:00]} 55. Ra7 {[%emt 0:00:00]} Nf6 {[%emt 0:00:00]} 56. hxg5+ {[%emt 0:00:00]} 1-0

[Event "13th Leiden Crown Group 2019"]
[Site "Leiden"]
[Date "2019.07.20"]
[Round "8.4"]
[White "Pruijssers, Roeland"]
[Black "Stefansson, Hannes"]
[Result "1-0"]
[ECO "C24"]
[WhiteElo "2534"]
[BlackElo "2562"]
[Annotator "ChessBase"]
[PlyCount "77"]
[EventDate "2019.07.08"]
[EventType "tourn"]
[EventCountry "NED"]
[SourceTitle "playchess.com"]
[Source "ChessBase"]
[SourceQuality "1"]
[TimeControl "40/5400+30:1800+30"]

1. e4 {[%emt 0:01:10]} e5 {[%emt 0:00:00]} 2. Nf3 {[%emt 0:00:09]} Nc6 {[%emt 0:00:00]} 3. Bc4 {[%emt 0:00:04]} Bc5 {[%emt 0:00:00]} 4. O-O {[%emt 0:00:09]} Nf6 {[%emt 0:00:06]} 5. d3 {[%emt 0:00:06]} O-O {[%emt 0:00:13]} 6. h3 {[%emt 0:00:44]} d5 {[%emt 0:01:36]} 7. exd5 {[%emt 0:00:34]} Nxd5 {[%emt 0:00:21]} 8. Re1 {[%emt 0:00:34]} Be6 {[%emt 0:01:34]} 9. c3 {[%emt 0:01:18]} Bb6 {[%emt 0:05:27]} 10. b4 {[%emt 0:05:22]} f6 {[%emt 0:05:08]} 11. a4 {[%emt 0:03:14]} a5 {[%emt 0:09:28]} 12. b5 {[%emt 0:01:34]} Nce7 {[%emt 0:00:38]} 13. d4 {[%emt 0:04:38]} Ng6 {[%emt 0:02:19]} 14. Nbd2 {[%emt 0:10:12]} Bf7 {[%emt 0:09:47]} 15. Ba3 {[%emt 0:12:15]} Nxc3 {[%emt 0:06:33]} 16. Qb3 {[%emt 0:01:12]} exd4 {[%emt 0:00:57]} 17. Bxf8 {[%emt 0:00:09]} Qxf8 {[%emt 0:00:12]} 18. Ne4 {[%emt 0:01:42]} Nxe4 {[%emt 0:03:05]} 19. Rxe4 {[%emt 0:00:15]} Rd8 {[%emt 0:01:00]} 20. Rae1 {[%emt 0:01:13]} Bxc4 {[%emt 0:01:37]} 21. Qxc4+ {[%emt 0:00:04]} Qf7 {[%emt 0:00:08]} 22. Re8+ {[%emt 0:05:45]} Rxe8 {[%emt 0:00:06]} 23. Rxe8+ {[%emt 0:00:04]} Nf8 {[%emt 0:00:05]} 24. Nd2 {[%emt 0:03:19]} Qxc4 {[%emt 0:07:01]} 25. Nxc4 {[%emt 0:00:06]} Kf7 {[%emt 0:00:04]} 26. Ra8 {[%emt 0:04:40]} d3 {[%emt 0:12:24]} 27. Nxb6 {[%emt 0:07:54]} cxb6 {[%emt 0:00:07]} 28. Rd8 {[%emt 0:00:08]} Ne6 {[%emt 0:00:22]} 29. Rd7+ {[%emt 0:01:15]} Ke8 {[%emt 0:00:06]} 30. Rxd3 {[%emt 0:00:22]} Nc5 {[%emt 0:00:23]} 31. Rd4 {[%emt 0:00:08]} h5 {[%emt 0:01:54]} 32. f4 {[%emt 0:11:55]} g6 {[%emt 0:03:08]} 33. g4 {[%emt 0:04:50]} hxg4 {[%emt 0:00:26]} 34. hxg4 {[%emt 0:00:06]} Ke7 {[%emt 0:00:38]} 35. f5 {[%emt 0:02:21]} g5 {[%emt 0:01:55]} 36. Kf2 {[%emt 0:00:11]} Kf7 {[%emt 0:01:53]} 37. Kf3 {[%emt 0:00:39]} Ke7 {[%emt 0:00:09]} 38. Ke3 {[%emt 0:00:06]} Ke8 {[%emt 0:01:00]} 39. Rd6 {[%emt 0:02:22]} 1-0

[Event "13th Leiden Crown Group 2019"]
[Site "Leiden"]
[Date "2019.07.20"]
[Round "8.5"]
[White "Schekachikhin, Maksim"]
[Black "Sengupta, Deep"]
[Result "1/2-1/2"]
[ECO "A84"]
[WhiteElo "2415"]
[BlackElo "2558"]
[Annotator "ChessBase"]
[PlyCount "56"]
[EventDate "2019.07.08"]
[EventType "tourn"]
[EventCountry "NED"]
[SourceTitle "playchess.com"]
[Source "ChessBase"]
[SourceQuality "1"]
[TimeControl "40/5400+30:1800+30"]

1. d4 {[%emt 0:00:00]} e6 {[%emt 0:00:00]} 2. c4 {[%emt 0:00:00]} f5 {[%emt 0:00:00]} 3. Nf3 {[%emt 0:02:32]} Nf6 {[%emt 0:00:10]} 4. Bf4 {[%emt 0:00:14]} b6 {[%emt 0:01:33]} 5. e3 {[%emt 0:00:56]} Bb7 {[%emt 0:00:04]} 6. Be2 {[%emt 0:00:36]} Bb4+ {[%emt 0:04:23]} 7. Nbd2 {[%emt 0:02:50]} O-O {[%emt 0:00:07]} 8. O-O {[%emt 0:01:24]} Be7 {[%emt 0:01:04]} 9. h3 {[%emt 0:02:00]} c5 {[%emt 0:06:53]} 10. Rc1 {[%emt 0:09:21]} Ne4 {[%emt 0:06:08]} 11. Bh2 {[%emt 0:10:41]} Bf6 {[%emt 0:08:14]} 12. Qc2 {[%emt 0:08:16]} Na6 {[%emt 0:29:33]} 13. a3 {[%emt 0:05:26]} cxd4 {[%emt 0:00:54]} 14. Nxd4 {[%emt 0:10:09]} Nac5 {[%emt 0:00:36]} 15. N2f3 {[%emt 0:03:06]} g5 {[%emt 0:06:47]} 16. b4 {[%emt 0:01:52]} g4 {[%emt 0:00:11]} 17. hxg4 {[%emt 0:04:26]} fxg4 {[%emt 0:00:04]} 18. bxc5 {[%emt 0:01:22]} gxf3 {[%emt 0:06:08]} 19. Bxf3 {[%emt 0:02:15]} Nxc5 {[%emt 0:00:12]} 20. Bxb7 {[%emt 0:01:31]} Nxb7 {[%emt 0:00:01]} 21. Rcd1 {[%emt 0:04:10]} Qe7 {[%emt 0:00:39]} 22. Nb5 {[%emt 0:00:38]} Qg7 {[%emt 0:06:20]} 23. Nd6 {[%emt 0:08:38]} Nc5 {[%emt 0:00:12]} 24. Ne4 {[%emt 0:00:32]} Be7 {[%emt 0:00:44]} 25. Nxc5 {[%emt 0:01:10]} Bxc5 {[%emt 0:00:04]} 26. Bd6 {[%emt 0:02:56]} Rf5 {[%emt 0:08:06]} 27. Bxc5 {[%emt 0:02:10]} Rxc5 {[%emt 0:00:04]} 28. Rd4 {[%emt 0:00:36]} Kh8 {[%emt 0:08:10]} 1/2-1/2